bitfinex-derivatives/quotes_SOLF0:USTF0_20250523
["timestamp","ask_amount","ask_price","bid_price","bid_amount"]
[1748040168182,5.6775,176.1,176.06,5.6784]
[1748040168571,5.71833951,176.1,176.06,5.7196025]
[1748040169083,5.6778,176.09,176.06,127.3812025]
[1748040169278,0.04083951,176.1,176.06,127.3812025]
[1748040170385,0.04083951,176.1,176.06,0.0412025]
[1748040170583,5.6784,176.07,176.06,0.0412025]
[1748040176689,0.04083951,176.1,175.96,408.84]
[1748040176892,6.53198542,176.11,175.97,235.1753]
[1748040177086,5.678,176.09,175.97,235.1753]
[1748040177281,6.53198542,176.11,175.98,3.9384]
[1748040177583,5.6784,176.07,176.03,5.6794]
[1748040177790,5.7183095,176.07,176.03,5.71792961]
[1748040178092,0.0399095,176.07,176.03,0.03852961]
[1748040178292,5.679,176.06,176.03,0.03852961]
[1748040179193,5.7184095,176.07,176.03,5.71802961]
[1748040179394,0.0399095,176.07,176.03,5.71802961]
[1748040180095,5.6788,176.06,176.03,5.71802961]
[1748040180391,0.0399095,176.07,176.03,0.03852961]
[1748040180797,0.0399095,176.07,176.06,5.6787]
[1748040181188,0.0399095,176.07,176.03,0.03852961]
[1748040181384,6.57544716,176.07,176.03,0.03852961]
[1748040181591,5.6789,176.06,176.03,0.03852961]
[1748040181797,6.57544716,176.07,176.03,0.03852961]
[1748040182294,5.6793,176.05,176.03,0.03852961]
[1748040182693,0.0399095,176.07,176.03,0.03852961]
[1748040183096,5.7185095,176.07,176.03,5.71802961]
[1748040183290,0.0399095,176.07,176.03,0.03852961]
[1748040183692,5.6794,176.04,176.03,0.03852961]
[1748040183900,0.0399095,176.07,176.03,0.03852961]
[1748040184700,5.6789,176.06,176.03,0.03852961]
[1748040185295,5.6789,176.06,176.03,5.71822961]
[1748040185499,5.6789,176.06,176.03,0.03852961]
[1748040187802,5.6789,176.06,176.03,5.71822961]
[1748040189099,5.6793,176.05,176.03,0.03852961]
[1748040189800,5.6789,176.06,176.03,0.03852961]
[1748040190306,5.7184095,176.07,176.03,5.71822961]
[1748040190607,0.0399095,176.07,176.03,5.71822961]
[1748040190806,0.0399095,176.07,176.03,0.03852961]
[1748040191207,5.679,176.06,176.03,0.03852961]
[1748040192102,0.0399095,176.07,176.03,0.03852961]
[1748040192806,0.0399095,176.07,176.04,5.6793]
[1748040193909,0.0399095,176.07,176.03,0.03852961]
[1748040195303,0.0399095,176.07,176.04,5.6793]
[1748040196112,0.0399095,176.07,176.03,0.03852961]
[1748040196803,5.6794,176.04,176.03,0.03852961]
[1748040197113,0.0399095,176.07,176.03,0.03852961]
[1748040197312,0.0399095,176.07,175.94,11.3652]
[1748040197313,6.5354061,176.03,175.9,132.41502401]
[1748040197610,6.5354061,176.03,175.92,2.0323]
[1748040197810,6.53868736,176.03,175.92,2.0323]
[1748040198006,131.89852268,176.04,175.92,2.0323]
[1748040198211,1.9972,176.05,175.96,0.04221285]
[1748040198212,0.04183772,176.0,175.96,0.04221285]
[1748040198509,0.04183772,176.0,175.97,125.36]
[1748040199611,0.04183772,176.0,175.96,0.04221285]
[1748040200417,5.6813,175.99,175.96,0.04221285]
[1748040200615,0.04183772,176.0,175.96,0.04221285]
[1748040201104,6.53533048,175.99,175.86,7.05502401]
[1748040201309,6.53533048,175.97,175.86,132.43502401]
[1748040201610,5.6827,175.94,175.89,5.684]
[1748040201811,6.53533048,175.97,175.86,132.43502401]
[1748040202216,0.04078559,175.93,175.9,0.03910785]
[1748040203816,6.99318634,176.01,175.96,5.6819]
[1748040203817,133.17318634,176.01,175.96,5.6819]
[1748040204213,6.99318634,176.01,175.91,126.18]
[1748040204820,6.99318634,176.01,175.94,0.04045092]
[1748040204821,0.03729234,175.98,175.94,0.04045092]
[1748040206322,0.03729234,175.98,175.97,5.6816]
[1748040208523,9.234e-05,175.98,175.97,5.6816]
[1748040210924,9.234e-05,175.98,175.97,11.3616]
[1748040211128,5.23477789,176.08,176.07,5.6784]
[1748040213230,5.23477789,176.08,176.06,5.71693669]
[1748040213527,0.03892296,176.09,176.06,0.03833669]
[1748040213931,6.57965382,176.09,175.98,126.18]
[1748040214130,6.54073086,176.05,175.98,126.18]
[1748040214325,5.6796,176.04,175.98,5.681]
[1748040214831,5.72247816,176.03,175.99,0.04350504]
[1748040215131,0.04277816,176.03,175.99,0.04350504]
[1748040216231,0.04277816,176.03,176.0,5.6804]
[1748040217130,0.04277816,176.03,175.99,5.72440504]
[1748040217328,0.04277816,176.03,175.99,0.04350504]
[1748040217517,5.72267816,176.03,175.99,0.04350504]
[1748040218130,5.72267816,176.03,175.99,5.72450504]
[1748040219433,5.6806,176.01,175.99,0.04350504]
[1748040222534,5.6801,176.02,175.99,0.04350504]
[1748040222734,0.04277816,176.03,175.99,0.04350504]
[1748040223041,5.6806,176.01,175.99,0.04350504]
[1748040223231,0.04277816,176.03,175.99,0.04350504]
[1748040223537,8.43987916,176.03,175.99,0.04350504]
[1748040224240,5.6807,176.0,175.99,0.04350504]
[1748040224536,13.67465705,176.03,175.99,0.04350504]
[1748040224838,5.6806,176.01,175.99,0.04350504]
[1748040225138,13.67465705,176.03,175.99,0.04350504]
[1748040225335,5.6807,176.0,175.99,0.04350504]
[1748040226740,126.2,176.0,175.91,1.9774]
[1748040227440,5.6827,175.94,175.89,535.3]
[1748040227826,0.04038959,175.93,175.9,5.71992938]
[1748040228739,0.04038959,175.93,175.9,0.03622938]
[1748040229341,5.6836,175.91,175.9,0.03622938]
[1748040231743,5.6833,175.92,175.9,0.03622938]
[1748040232137,0.04038959,175.93,175.9,0.03622938]
[1748040232939,0.04038959,175.93,175.92,5.6832]
[1748040233833,0.04038959,175.93,175.91,5.6834]
[1748040234242,0.04038959,175.93,175.9,0.03622938]
[1748040235041,5.72348959,175.93,175.9,0.03622938]
[1748040235339,0.04038959,175.93,175.9,0.03622938]
[1748040235538,0.04038959,175.93,175.91,5.6834]
[1748040235837,0.04038959,175.93,175.9,0.03622938]
[1748040236436,5.6835,175.91,175.9,0.03622938]
[1748040239239,5.6833,175.92,175.9,0.03622938]
[1748040239545,6.54618307,175.92,175.9,0.03622938]
[1748040239744,6.54618307,175.92,175.81,2.0342]
[1748040240745,0.03852602,175.88,175.81,2.0342]
[1748040241438,0.03852602,175.88,175.81,110.0342]
[1748040241645,0.03852602,175.88,175.77,123.72]
[1748040241845,0.04169345,175.84,175.78,1.9296]
[1748040242045,0.03589465,175.83,175.78,1.9296]
[1748040242247,0.03589465,175.83,175.82,5.6862]
[1748040242545,6.54618307,175.93,175.82,123.72]
[1748040243051,6.54618307,175.93,175.85,5.6854]
[1748040243239,6.54618307,175.93,175.82,123.72]
[1748040243437,0.03636483,175.89,175.86,5.72537272]
[1748040243849,0.03636483,175.89,175.86,0.04047272]
[1748040244648,5.6847,175.88,175.86,0.04047272]
[1748040244849,0.03636483,175.89,175.86,0.04047272]
[1748040245241,123.77636483,175.89,175.86,0.04047272]
[1748040245543,5.6848,175.87,175.86,0.04047272]
[1748040246250,5.6858,175.85,175.8,5.37255374]
[1748040246657,123.74,175.89,175.8,5.37255374]
[1748040247147,5.686,175.84,175.8,5.37255374]
[1748040247351,5.72811172,175.84,175.8,5.37255374]
[1748040247649,5.72791172,175.84,175.81,5.6867]
[1748040247854,5.72791172,175.84,175.75,11.05157229]
[1748040247855,0.04211172,175.84,175.75,11.05157229]
[1748040248244,0.04211172,175.84,175.76,123.74]
[1748040248448,0.04211172,175.84,175.79,5.6872]
[1748040248641,0.04211172,175.84,175.76,123.74]
[1748040248947,5.72811172,175.84,175.79,5.6872]
[1748040249651,5.72811172,175.84,175.8,5.6871]
[1748040251160,5.6862,175.83,175.8,5.6871]
[1748040251548,5.6862,175.83,175.79,5.6873]
[1748040251849,5.6862,175.83,175.76,123.74]
[1748040252048,5.72811172,175.84,175.76,123.74]
[1748040252248,0.04211172,175.84,175.76,123.74]
[1748040253049,0.04211172,175.84,175.76,248.74]
[1748040254356,0.04211172,175.84,175.81,5.6866]
[1748040254552,0.04211172,175.84,175.79,123.76]
[1748040255149,5.6862,175.83,175.79,123.76]
[1748040255350,0.04211172,175.84,175.75,11.05157229]
[1748040255552,0.04211172,175.84,175.76,231.8]
[1748040255946,0.04211172,175.84,175.83,5.6862]
[1748040259254,6.54843811,175.94,175.82,3.8178]
[1748040259557,130.30843811,175.94,175.82,5.674]
[1748040260054,5.6836,175.91,175.87,5.6847]
[1748040260254,0.03763747,175.91,175.87,0.03955344]
[1748040260661,5.684,175.9,175.87,0.03955344]
[1748040261062,0.03763747,175.91,175.87,0.03955344]
[1748040261261,5.72123747,175.91,175.87,5.72415344]
[1748040262367,0.03763747,175.91,175.87,0.03955344]
[1748040262865,0.03763747,175.91,175.9,5.6839]
[1748040263457,0.03763747,175.91,175.89,5.6841]
[1748040264767,0.03763747,175.91,175.88,5.6844]
[1748040265067,0.03763747,175.91,175.87,0.03955344]
[1748040266565,0.03763747,175.91,175.9,5.6839]
[1748040266966,0.03763747,175.91,175.87,0.03955344]
[1748040267666,0.03763747,175.91,175.9,5.6839]
[1748040278271,0.03763747,175.91,175.87,122.71955344]
[1748040278975,0.03763747,175.91,175.89,5.6841]
[1748040279773,0.03763747,175.91,175.87,122.71955344]
[1748040279976,0.03763747,175.91,175.87,0.03955344]
[1748040280677,5.684,175.9,175.87,0.03955344]
[1748040281178,5.684,175.9,175.87,5.72425344]
[1748040281373,0.03763747,175.91,175.87,0.03955344]
[1748040281682,5.6845,175.88,175.87,0.03955344]
[1748040283279,5.6858,175.85,175.81,122.66]
[1748040283482,6.54843811,175.88,175.81,122.66]
[1748040283976,5.6852,175.86,175.83,5.6859]
[1748040284280,5.72671707,175.86,175.83,5.6859]
[1748040285180,5.6856,175.85,175.81,122.66]
[1748040285677,5.72681707,175.86,175.82,5.6865]
[1748040286282,0.04151707,175.86,175.82,5.6865]
[1748040286579,0.04151707,175.86,175.81,122.66]
[1748040286580,0.04151707,175.86,175.83,5.686]
[1748040287181,5.72681707,175.86,175.82,5.6864]
[1748040287474,0.04151707,175.86,175.81,122.66]
[1748040287680,0.04151707,175.86,175.82,5.6863]
[1748040287681,5.72681707,175.86,175.82,5.6863]
[1748040288272,0.04151707,175.86,175.82,5.6863]
[1748040288775,5.72681707,175.86,175.82,5.6863]
[1748040289079,0.04151707,175.86,175.81,5.6868]
[1748040289381,5.6857,175.85,175.81,5.6868]
[1748040289781,5.72681707,175.86,175.78,122.7]
[1748040290382,0.04151707,175.86,175.78,122.7]
[1748040292278,0.04151707,175.86,175.77,1.8489]
[1748040292581,0.04151707,175.86,175.79,230.74]
[1748040293079,0.04151707,175.86,175.85,5.6855]
[1748040297085,0.04151707,175.86,175.84,122.7]
[1748040297884,0.04151707,175.86,175.84,128.3855]
[1748040298785,5.72671707,175.86,175.84,122.7]
[1748040299380,5.72671707,175.86,175.82,5.6861]
[1748040300286,5.72671707,175.86,175.83,5.6861]
[1748040301188,5.72671707,175.86,175.82,5.6864]
[1748040301686,0.04151707,175.86,175.8,121.8]
[1748040303592,5.72691707,175.86,175.82,5.6862]
[1748040303792,0.04151707,175.86,175.8,121.8]
[1748040304789,5.72691707,175.86,175.82,5.6862]
[1748040304994,0.04151707,175.86,175.82,5.6862]
[1748040305295,5.72691707,175.86,175.82,5.6862]
[1748040305590,0.04151707,175.86,175.8,121.8]
[1748040306094,0.04151707,175.86,175.84,5.6856]
[1748040307195,0.04151707,175.86,175.83,5.686]
[1748040307997,0.04151707,175.86,175.84,5.6857]
[1748040308399,0.04151707,175.86,175.8,121.8]
[1748040309997,0.04151707,175.86,175.82,5.6862]
[1748040310194,0.04151707,175.86,175.8,121.8]
[1748040310497,0.04151707,175.86,175.83,5.686]
[1748040310797,0.04151707,175.86,175.8,121.8]
[1748040311201,0.04151707,175.86,175.85,5.6855]
[1748040313799,0.04151707,175.86,175.84,5.6857]
[1748040314191,0.04151707,175.86,175.8,246.8]
[1748040314391,0.04151707,175.86,175.8,121.8]
[1748040314592,0.04151707,175.86,175.85,5.6855]
[1748040314792,0.04151707,175.86,175.8,121.8]
[1748040314990,0.04151707,175.86,175.81,5.6867]
[1748040315294,5.6856,175.85,175.81,5.6867]
[1748040316496,5.6858,175.84,175.8,127.4869]
[1748040316798,0.04151707,175.86,175.8,121.8]
[1748040317703,0.04151707,175.86,175.81,5.6867]
[1748040317704,5.6857,175.85,175.81,5.6867]
[1748040318703,5.6857,175.85,175.82,5.6864]
[1748040318908,0.04151707,175.86,175.8,121.8]
[1748040319402,5.6865,175.82,175.75,132.85157229]
[1748040319602,0.03672645,175.8,175.75,132.85157229]
[1748040319802,0.03672645,175.8,175.79,5.6874]
[1748040320198,121.8,175.85,175.75,132.85157229]
[1748040320503,5.23477789,175.88,175.83,5.6858]
[1748040320907,5.23477789,175.88,175.84,5.6856]
[1748040321199,5.27192773,175.88,175.84,5.72610914]
[1748040321706,5.27192773,175.88,175.85,5.6854]
[1748040322004,5.27192773,175.88,175.84,0.04050914]
[1748040323104,11.82239127,175.88,175.84,0.04050914]
[1748040323604,5.6855,175.85,175.84,0.04050914]
[1748040324403,5.6852,175.86,175.84,0.04050914]
[1748040324803,5.6855,175.85,175.84,0.04050914]
[1748040327108,5.23477789,175.87,175.8,5.6869]
[1748040327608,5.6864,175.83,175.79,5.6873]
[1748040327806,5.6864,175.83,175.76,229.86]
[1748040328108,0.03819887,175.81,175.76,229.86]
[1748040328307,0.03819887,175.81,175.79,5.6871]
[1748040328705,0.03819887,175.81,175.8,127.3871]
[1748040333713,0.03819887,175.81,175.8,121.7]
[1748040335213,0.03819887,175.81,175.8,127.3871]
[1748040337012,5.23477789,175.87,175.84,5.6857]
[1748040337206,5.23477789,175.87,175.8,121.7]
[1748040337608,5.23477789,175.87,175.86,5.6851]
[1748040338209,0.04320068,175.88,175.87,5.6848]
[1748040342126,0.04320068,175.88,175.85,0.04215263]
[1748040343227,5.72800068,175.88,175.85,0.04215263]
[1748040345133,0.04320068,175.88,175.85,0.04215263]
[1748040345632,5.6852,175.86,175.85,0.04215263]
[1748040346725,5.685,175.87,175.85,0.04215263]
[1748040346926,0.04320068,175.88,175.85,0.04215263]
[1748040348137,5.6852,175.87,175.85,0.04215263]
[1748040348630,5.6852,175.86,175.85,0.04215263]
[1748040349531,121.68,175.87,175.78,5.29144056]
[1748040350434,0.03870668,175.84,175.78,5.29144056]
[1748040350732,0.03870668,175.84,175.83,5.6861]
[1748040351141,0.03870668,175.84,175.78,5.29144056]
[1748040351932,0.03870668,175.84,175.83,5.6861]
[1748040352238,0.03870668,175.84,175.78,5.29144056]
[1748040352543,0.03870668,175.84,175.82,5.6862]
[1748040353041,0.03870668,175.84,175.77,121.68]
[1748040353737,0.03870668,175.84,175.8,5.6869]
[1748040354436,0.03870668,175.84,175.81,5.6865]
[1748040354634,0.03870668,175.84,175.77,121.68]
[1748040354939,0.03870668,175.84,175.77,246.68]
[1748040355240,0.03870668,175.84,175.82,5.6863]
[1748040356039,0.03870668,175.84,175.77,246.68]
[1748040356429,0.03870668,175.84,175.82,5.6864]
[1748040356930,0.03870668,175.84,175.77,246.68]
[1748040357138,0.03870668,175.84,175.82,5.6864]
[1748040358837,0.03870668,175.84,175.83,5.6861]
[1748040360445,0.03870668,175.84,175.77,121.68]
[1748040360734,0.03870668,175.84,175.77,246.68]
[1748040361233,0.03870668,175.84,175.83,5.6861]
[1748040363735,5.72470668,175.84,175.81,5.6868]
[1748040364043,0.03870668,175.84,175.77,121.68]
[1748040364439,5.6863,175.83,175.77,121.68]
[1748040364744,0.03870668,175.84,175.75,18.34351285]
[1748040364952,128.18630926,175.83,175.75,16.34301285]
[1748040365139,2.0431,175.82,175.75,16.34301285]
[1748040365340,0.04042811,175.8,175.75,16.34301285]
[1748040365851,5.72762811,175.8,175.75,22.03141285]
[1748040366146,5.72762811,175.8,175.75,16.34301285]
[1748040366341,5.688,175.78,175.75,16.34301285]
[1748040366649,0.04042811,175.8,175.75,16.34301285]
[1748040366843,0.04042811,175.8,175.78,5.6875]
[1748040367048,0.04042811,175.8,175.75,11.05157229]
[1748040367440,5.6878,175.78,175.75,11.05157229]
[1748040367641,6.58673737,175.8,175.75,11.05157229]
[1748040367836,121.64,175.79,175.75,11.05157229]
[1748040368038,5.6884,175.76,175.75,1.83467229]
[1748040368241,121.64,175.79,175.75,1.83467229]
[1748040368541,127.3277,175.79,175.75,7.52307229]
[1748040369146,127.3277,175.79,175.76,5.6884]
[1748040369339,127.3277,175.79,175.75,1.83467229]
[1748040370048,121.64,175.79,175.76,5.6883]
[1748040370346,121.64,175.79,175.75,1.83467229]
[1748040370544,5.6878,175.78,175.75,1.83467229]
[1748040370848,121.64,175.79,175.75,1.83467229]
[1748040371047,121.64,175.79,175.76,5.6882]
[1748040371236,121.64,175.79,175.75,1.83467229]
[1748040371641,127.3276,175.79,175.75,7.52337229]
[1748040371845,121.64,175.79,175.75,1.83467229]
[1748040372346,6.54630926,175.76,175.68,82.95454545]
[1748040372654,0.03700077,175.74,175.68,82.95454545]
[1748040373245,0.03700077,175.74,175.7,5.6903]
[1748040373443,0.03700077,175.74,175.68,82.95454545]
[1748040375953,5.23477789,175.78,175.69,0.03788226]
[1748040376157,5.23477789,175.78,175.7,108.1]
[1748040376448,5.23477789,175.78,175.69,0.03788226]
[1748040376649,5.23477789,175.78,175.7,5.6903]
[1748040376650,5.6887,175.76,175.7,5.6903]
[1748040376849,5.23477789,175.78,175.69,0.03788226]
[1748040377149,0.04084622,175.75,175.69,0.03788226]
[1748040377955,0.04084622,175.75,175.73,5.6891]
[1748040378452,0.04084622,175.75,175.74,5.689]
[1748040378646,0.04084622,175.75,175.73,0.04097805]
[1748040380256,5.72984622,175.75,175.73,0.04097805]
[1748040380750,5.689,175.74,175.73,0.04097805]
[1748040380953,0.04084622,175.75,175.73,0.04097805]
[1748040381360,5.689,175.74,175.73,0.04097805]
[1748040382652,5.72954622,175.75,175.73,0.04097805]
[1748040383469,0.04084622,175.75,175.73,0.04097805]
[1748040384666,5.689,175.74,175.73,0.04097805]
[1748040389764,127.42964622,175.75,175.73,0.04097805]
[1748040390356,5.689,175.74,175.73,0.04097805]
[1748040392358,121.74084622,175.75,175.68,82.95454545]
[1748040392564,5.6904,175.7,175.68,82.95454545]
[1748040392757,6.54630926,175.73,175.68,82.95454545]
[1748040392958,5.6902,175.71,175.68,82.95454545]
[1748040393363,5.73387994,175.71,175.68,82.95454545]
[1748040393763,5.73387994,175.71,175.68,88.64554545]
[1748040394270,5.6904,175.7,175.68,82.95454545]
[1748040394463,0.04367994,175.71,175.68,82.95454545]
[1748040394667,6.54630926,175.7,175.68,82.95454545]
[1748040394861,0.04367994,175.71,175.68,82.95454545]
[1748040395067,5.23477789,175.78,175.68,82.99267323]
[1748040395364,5.689,175.75,175.7,5.6902]
[1748040395562,133.42108715,175.78,175.69,3.9019]
[1748040396070,5.6891,175.74,175.72,0.03779003]
[1748040396262,0.04179571,175.75,175.69,1.9778]
[1748040396457,5.69,175.72,175.68,88.64544545]
[1748040396665,128.18630926,175.74,175.68,82.95454545]
[1748040396862,121.64,175.74,175.68,82.95454545]
[1748040397261,5.6894,175.73,175.68,88.64544545]
[1748040398569,121.64,175.74,175.68,82.95454545]
[1748040398968,5.6901,175.71,175.68,82.95454545]
[1748040399268,0.03977022,175.71,175.68,82.95454545]
[1748040401454,5.6906,175.7,175.68,82.95454545]
[1748040402772,5.6906,175.69,175.68,82.95454545]
[1748040405369,0.03977022,175.71,175.68,82.95454545]
[1748040406774,5.69,175.7,175.68,82.95454545]
[1748040406964,6.58607948,175.71,175.68,82.95454545]
[1748040407167,0.03977022,175.71,175.68,82.95454545]
[1748040407365,5.72927022,175.71,175.68,82.95454545]
[1748040407574,0.03977022,175.71,175.68,82.95454545]
[1748040407766,5.6898,175.7,175.68,82.95454545]
[1748040407967,0.03977022,175.71,175.68,82.95454545]
[1748040408369,5.72927022,175.71,175.68,82.95454545]
[1748040409676,0.03977022,175.71,175.68,82.95454545]
[1748040413378,5.6901,175.69,175.68,82.95454545]
[1748040414676,6.54630926,175.69,175.58,5.29144056]
[1748040414981,0.03698363,175.65,175.61,3.9943]
[1748040415578,0.03698363,175.65,175.61,1.9666]
[1748040415779,5.72848363,175.65,175.61,7.6592]
[1748040415981,0.03698363,175.65,175.61,1.9666]
[1748040416275,5.72848363,175.65,175.62,121.66]
[1748040416482,0.03698363,175.65,175.62,121.66]
[1748040417881,0.03698363,175.65,175.61,1.9666]
[1748040418082,5.692,175.64,175.61,1.9666]
[1748040418485,5.6922,175.63,175.61,1.9666]
[1748040419083,5.6924,175.62,175.61,1.9666]
[1748040419582,5.6924,175.62,175.56,121.66]
[1748040419785,5.73012796,175.61,175.57,5.6938]
[1748040419981,0.03732796,175.61,175.56,123.634]
[1748040420184,0.03732796,175.61,175.56,1.974]
[1748040420377,0.03732796,175.61,175.58,5.6937]
[1748040420978,0.03732796,175.61,175.56,1.974]
[1748040421178,0.03732796,175.61,175.53,1.8475]
[1748040421379,0.03732796,175.61,175.54,1.8432]
[1748040421678,5.73042796,175.61,175.56,5.6941]
[1748040421883,5.73042796,175.61,175.54,1.8432]
[1748040422084,0.03732796,175.61,175.54,1.8432]
[1748040422288,5.73012796,175.61,175.54,1.8432]
[1748040422485,0.03732796,175.61,175.54,1.8432]
[1748040422687,5.6931,175.6,175.54,1.8432]
[1748040422881,0.03732796,175.61,175.54,1.8432]
[1748040423284,0.03732796,175.61,175.57,5.6938]
[1748040423581,0.03732796,175.61,175.55,121.6]
[1748040424885,0.03732796,175.61,175.55,246.6]
[1748040425089,126.81477789,175.66,175.55,246.6]
[1748040425281,5.23477789,175.66,175.55,246.6]
[1748040425680,10.92597789,175.66,175.55,246.6]
[1748040426088,0.03737999,175.62,175.61,5.6925]
[1748040426287,11.78108715,175.69,175.59,0.03609367]
[1748040426789,5.6909,175.67,175.63,5.6919]
[1748040426988,5.23477789,175.69,175.6,125.4205]
[1748040427390,3.964e-05,175.66,175.63,0.0401006]
[1748040427597,3.964e-05,175.66,175.64,229.78]
[1748040427890,6.99318634,175.72,175.71,5.6895]
[1748040428391,3.92228634,175.72,175.71,5.6895]
[1748040429289,0.04123878,175.73,175.72,5.6892]
[1748040430493,0.04123878,175.73,175.7,0.03609131]
[1748040430689,6.54630926,175.71,175.59,7.05502401]
[1748040430988,5.692,175.64,175.59,7.05502401]
[1748040431294,121.58,175.67,175.59,7.05502401]
[1748040431489,5.6513,175.74,175.58,1.8821]
[1748040431696,0.0405039,175.68,175.64,0.04175443]
[1748040432591,121.58,175.74,175.64,0.04175443]
[1748040432786,10.38865819,175.76,175.64,0.04175443]
[1748040432988,10.38865819,175.76,175.64,1.9625]
[1748040433587,0.03732141,175.72,175.68,0.03679011]
[1748040434590,0.03732141,175.72,175.69,5.69]
[1748040434898,0.03732141,175.72,175.68,0.03679011]
[1748040435297,0.03732141,175.72,175.68,5.72699011]
[1748040435498,0.03732141,175.72,175.68,0.03679011]
[1748040436594,0.03732141,175.72,175.69,5.6899]
[1748040437392,0.03732141,175.72,175.69,5.6901]
[1748040437694,0.03732141,175.72,175.68,0.03679011]
[1748040437895,0.03732141,175.72,175.7,5.6898]
[1748040438099,0.03732141,175.72,175.68,0.03679011]
[1748040438497,5.6896,175.71,175.68,0.03679011]
[1748040438796,0.03732141,175.72,175.68,0.03679011]
[1748040439101,5.6899,175.7,175.68,0.03679011]
[1748040439501,0.03732141,175.72,175.68,0.03679011]
[1748040439696,5.6897,175.71,175.68,0.03679011]
[1748040439997,0.03732141,175.72,175.68,0.03679011]
[1748040440196,2.0353,175.71,175.68,0.03679011]
[1748040440397,5.6901,175.69,175.68,0.03679011]
[1748040442994,7.7251,175.71,175.68,0.03679011]
[1748040443191,0.03732141,175.72,175.68,0.03679011]
[1748040443593,5.69,175.7,175.68,0.03679011]
[1748040443898,0.03732141,175.72,175.68,0.03679011]
[1748040444700,10.6925561,175.71,175.64,121.58]
[1748040444900,10.6925561,175.71,175.63,5.6919]
[1748040444901,121.58,175.7,175.61,3.9887]
[1748040445399,121.58,175.7,175.63,5.692]
[1748040445400,5.6908,175.67,175.63,5.692]
[1748040445701,5.72908393,175.67,175.63,5.72876311]
[1748040446502,0.03828393,175.67,175.64,5.6917]
[1748040447001,0.03828393,175.67,175.65,5.6914]
[1748040447302,0.03828393,175.67,175.63,0.03676311]
[1748040448001,5.72918393,175.67,175.63,0.03676311]
[1748040448502,5.6913,175.66,175.63,0.03676311]
[1748040448799,0.03828393,175.67,175.63,0.03676311]
[1748040449799,5.6912,175.66,175.63,0.03676311]
[1748040450109,0.03828393,175.67,175.63,0.03676311]
[1748040451010,5.72918393,175.67,175.63,0.03676311]
[1748040451501,0.03828393,175.67,175.63,0.03676311]
[1748040453506,132.04865819,175.75,175.68,5.6902]
[1748040453699,132.04865819,175.75,175.67,121.66]
[1748040453892,137.73695819,175.75,175.69,5.6899]
[1748040454106,137.73695819,175.75,175.67,121.66]
[1748040454406,0.03878382,175.73,175.69,0.03718366]
[1748040455000,5.6898,175.7,175.69,0.03718366]
[1748040459605,5.6895,175.71,175.69,0.03718366]
[1748040459911,0.03878382,175.73,175.69,0.03718366]
[1748040460111,5.6898,175.7,175.69,0.03718366]
[1748040463509,5.6896,175.71,175.69,0.03718366]
[1748040463913,0.03878382,175.73,175.69,0.03718366]
[1748040464507,5.6893,175.72,175.69,0.03718366]
[1748040464910,5.72768382,175.73,175.69,5.72728366]
[1748040466006,5.6893,175.72,175.69,0.03718366]
[1748040468209,5.6896,175.71,175.69,0.03718366]
[1748040469110,5.6898,175.7,175.69,0.03718366]
[1748040473924,123.6705,175.72,175.61,121.64]
[1748040474113,10.68721455,175.71,175.61,121.64]
[1748040474515,134.35771455,175.72,175.59,5.29144056]
[1748040474817,10.68721455,175.68,175.59,5.29144056]
[1748040475023,121.70091121,175.67,175.64,0.04237899]
[1748040475213,5.6931,175.6,175.59,5.29144056]
[1748040475415,121.66,175.67,175.59,5.29144056]
[1748040475719,5.6926,175.62,175.59,5.29144056]
[1748040475912,6.5669804,175.66,175.59,5.29144056]
[1748040476225,5.6924,175.62,175.61,0.0432437]
[1748040476424,6.5669804,175.63,175.59,5.29144056]
[1748040476719,0.04271083,175.64,175.59,5.29144056]
[1748040477321,5.6931,175.6,175.59,5.29144056]
[1748040477725,6.5669804,175.63,175.55,121.66]
[1748040477916,0.03956318,175.61,175.55,121.66]
[1748040478109,0.03956318,175.61,175.51,1.9545]
[1748040478419,0.03956318,175.61,175.52,121.66]
[1748040478819,5.6941,175.57,175.53,5.6952]
[1748040479022,5.73564764,175.57,175.53,5.6952]
[1748040479220,0.04154764,175.57,175.5,5.29144056]
[1748040479515,6.60852804,175.57,175.5,5.29144056]
[1748040479920,1.97154764,175.57,175.5,5.29144056]
[1748040480223,5.6947,175.55,175.5,5.29144056]
[1748040480418,0.04154764,175.57,175.5,5.29144056]